[Event "55th Rubinstein Memorial-C 2019"]
[Site "Polanica-Zdroj"]
[Date "2019.08.19"]
[Round "3.19"]
[White "Knap, Narcyz"]
[Black "Mike, Patryk"]
[Result "1/2-1/2"]
[ECO "C44"]
[WhiteElo "1584"]
[BlackElo "1840"]
[Annotator "NA RC"]
[PlyCount "55"]
[EventDate "2019.08.17"]
[EventType "swiss"]
[EventCountry "POL"]
[SourceTitle "playchess.com"]
[Source "ChessBase"]
[SourceQuality "1"]
[TimeControl "40/5400+30:1800+30"]

{[%evp 9,54,0,59,-35,32767,-47,32767,-32,32767,32767,-40,-24,32767,32767,-35,-52,-58,-69,-74,32767,32767,32767,-68,-91,-66,-72,32767,32767,-81,32767,32767,-59,-51,-91,-95,32767,-54,32767,-62,-261,-331,32767,32767,32767,-65,-47,-10]} 1. e4 {[%emt 0:00:00]} e5 {[%emt 0:00:00]} 2. d4 {[%emt 0:00:00]} exd4 {[%emt 0:00:13]} 3. Nf3 {[%emt 0:00:00]} Nc6 {[%emt 0:00:45]} 4. Bc4 {[%emt 0:00:50]} Bc5 {[%emt 0:01:00]} 5. c3 {[%emt 0:12:41]} d6 {[%emt 0:01:20]} (5... Nf6 $11) 6. Nxd4 {[%emt 0:11:41] C53: Giuoco Piano sidelines} (6. cxd4 $14 Bb6 7. h3 (7. Nc3 Bg4 8. Be3 Nf6 9. h3 Bh5 10. g4 Bg6 11. Bg5 h6 12. Bh4 Bh7 13. g5 hxg5 14. Bxg5 Qd7 15. Bxf6 gxf6 {0-1 (26) Bosiocic,M (2599)-Gareyev,T (2569) St Petersburg 2018})) 6... Nf6 {[%emt 0:07:29]} 7. f3 {[%emt 0:10:43]} O-O {[%emt 0:05:58]} 8. O-O {[%emt 0:00:33]} d5 {[%emt 0:05:54]} 9. exd5 {[%emt 0:10:48]} Nxd5 {[%emt 0:03:11]} 10. Kh1 $1 {[%emt 0:01:28]} Bxd4 {[%emt 0:05:04]} 11. cxd4 {[%emt 0:07:35]} Nb6 {[%emt 0:00:58]} 12. d5 $146 {[%emt 0:05:52]} ({Predecessor:} 12. Bd3 Qxd4 13. Qc2 {0-1 (28) Tamarozi,I (1697)-Tohirjonova,G (1858) Caldas Novas 2011}) 12... Ne7 {[%emt 0:08:54]} 13. Bd3 {[%emt 0:04:53]} Nexd5 {[%emt 0:04:16]} 14. Nc3 {[%emt 0:02:02]} Nxc3 {[%emt 0:02:34]} 15. bxc3 {[%emt 0:00:04]} Be6 {[%emt 0:01:40]} 16. Qc2 {[%emt 0:01:13]} Qh4 {[%emt 0:03:47]} 17. a4 {[%emt 0:03:32]} Bc4 {[%emt 0:02:33]} 18. a5 {[%emt 0:03:39]} Bxd3 {[%emt 0:00:53]} 19. Qxd3 {[%emt 0:00:09]} Rfd8 {[%emt 0:03:05]} 20. Qb1 {[%emt 0:01:52]} Nd5 {[%emt 0:04:35]} 21. Qxb7 {[%emt 0:00:16] [#]} Qc4 $1 {[%emt 0:00:57]} 22. Rd1 {[%emt 0:05:40]} Nxc3 {[%emt 0:08:33]} 23. Rxd8+ {[%emt 0:05:48]} Rxd8 {[%emt 0:00:11]} 24. Bb2 $2 {[%emt 0:02:01]} (24. Bg5 $15 Nd1 25. h3) 24... Nd1 {[%emt 0:03:26]} 25. h3 {[%emt 0:01:44]} Nxb2 {[%emt 0:05:33]} 26. Qxb2 {[%emt 0:00:03]} Qa6 {[%emt 0:01:11]} 27. Qc3 {[%emt 0:00:28]} Rc8 $11 {[%emt 0:09:47]} 28. Qc5 1/2-1/2

[Event "55th Rubinstein Memorial-C 2019"]
[Site "Polanica-Zdroj"]
[Date "2019.08.19"]
[Round "3.20"]
[White "Trusz, Julia"]
[Black "Sypien, Natan"]
[Result "1/2-1/2"]
[ECO "B31"]
[WhiteElo "1583"]
[BlackElo "1819"]
[Annotator "NA RC"]
[PlyCount "108"]
[EventDate "2019.08.17"]
[EventType "swiss"]
[EventCountry "POL"]
[SourceTitle "playchess.com"]
[Source "ChessBase"]
[SourceQuality "1"]
[TimeControl "40/5400+30:1800+30"]

1. e4 {[%emt 0:00:00]} c5 {[%emt 0:00:00]} 2. Nf3 {[%emt 0:00:00]} Nc6 {[%emt 0:00:00]} 3. Bb5 {[%emt 0:00:11]} g6 {[%emt 0:00:00]} 4. Bxc6 {[%emt 0:00:30]} bxc6 {[%emt 0:00:00]} 5. O-O {[%emt 0:00:48]} Bg7 {[%emt 0:00:00]} 6. Re1 {[%emt 0:00:55]} Nh6 {[%emt 0:00:08]} 7. c3 {[%emt 0:05:06]} O-O {[%emt 0:00:05]} 8. d4 {[%emt 0:00:23]} cxd4 {[%emt 0:00:04]} 9. cxd4 {[%emt 0:00:08]} d5 {[%emt 0:00:11]} 10. e5 {[%emt 0:01:15] B31: Sicilian: 2...Nc6 3 Bb5 g6} f6 {[%emt 0:00:39]} 11. exf6 {[%emt 0:01:28]} exf6 {[%emt 0:01:26]} 12. Nbd2 {[%emt 0:02:24]} Nf7 {[%emt 0:04:39]} 13. Nb3 {[%emt 0:03:10]} Nd6 {[%emt 0:07:31]} 14. Nc5 {[%emt 0:04:08]} Re8 {[%emt 0:02:05]} 15. Bf4 {[%emt 0:08:11]} Ne4 {[%emt 0:14:34]} 16. Rc1 {[%emt 0:04:43]} Nxc5 $146 {[%emt 0:08:42]} ({Predecessor:} 16... Bf8 17. Nd3 Qb6 {½-½ (60) Fedorchuk,S (2637)-Maisuradze,N (2172) Orsay 2018}) 17. Rxc5 {[%emt 0:03:01]} Bd7 {[%emt 0:02:57]} 18. h3 {[%emt 0:05:13]} Bf8 {[%emt 0:01:28]} 19. Rc2 {[%emt 0:01:04]} Qa5 {[%emt 0:08:56]} 20. b3 {[%emt 0:06:53]} Re4 {[%emt 0:02:44]} ({Better is} 20... Qa6 $15) 21. Be3 {[%emt 0:02:53]} (21. Rxe4 $11 dxe4 22. Nh2) 21... Rae8 {[%emt 0:02:42]} 22. Rf1 {[%emt 0:07:50]} Bd6 {[%emt 0:04:38]} 23. Qc1 {[%emt 0:03:14]} Qc7 {[%emt 0:03:22]} 24. Re1 {[%emt 0:07:48]} Qc8 {[%emt 0:03:42]} 25. Nh2 {[%emt 0:08:43]} Rh4 {[%emt 0:11:34]} (25... Kf7 $15) 26. f3 {[%emt 0:04:25] [#]} Bxh2+ {[%emt 0:07:48]} (26... Bxh3 $1 $15 {[%mdl 512]} 27. gxh3 Qxh3) 27. Kxh2 {[%emt 0:00:07]} Bxh3 {[%emt 0:00:02] [#]} 28. Kg1 {[%emt 0:01:08]} (28. Kg3 $1 $16 {[%cal Rg3h4]} g5 29. Rxc6) 28... Bd7 {[%emt 0:01:50]} 29. Bf2 {[%emt 0:00:59]} Rxe1+ {[%emt 0:08:03]} 30. Qxe1 {[%emt 0:00:09]} ({White should play} 30. Bxe1 $16 Rxd4 31. Bc3) 30... Rh5 {[%emt 0:00:45]} (30... Rh6 $1 $11) 31. Bg3 {[%emt 0:04:31]} Kf7 {[%emt 0:00:32]} (31... Rh6 $14) 32. Re2 {[%emt 0:00:44]} Be6 {[%emt 0:00:44]} 33. Bf2 {[%emt 0:02:39]} (33. Qa5 $14) 33... Rf5 {[%emt 0:00:55]} 34. Re3 {[%emt 0:00:40]} h5 {[%emt 0:00:03]} 35. g3 {[%emt 0:02:37]} ({White should try} 35. b4 $14) 35... Qd7 {[%emt 0:00:36]} 36. Rc3 {[%emt 0:00:43]} Qd6 {[%emt 0:00:35]} 37. Kg2 {[%emt 0:00:37]} Bd7 {[%emt 0:00:55]} 38. Be3 {[%emt 0:02:51]} Qe6 $11 {[%emt 0:01:40]} 39. Qd1 {[%emt 0:01:58]} g5 {[%emt 0:01:16]} 40. Qd3 {[%emt 0:02:49]} g4 {[%emt 0:01:32]} 41. f4 {[%emt 0:31:34]} h4 {[%emt 0:30:31]} 42. gxh4 g3 43. Bd2 {[%emt 0:01:36]} Rh5 {[%emt 0:00:10]} 44. Qxg3 {[%emt 0:00:31]} Qe2+ {[%emt 0:00:36]} 45. Qf2 {[%emt 0:00:04]} Qg4+ {[%emt 0:01:06]} 46. Qg3 {[%emt 0:00:34]} Qe2+ {[%emt 0:00:36]} 47. Qf2 {[%emt 0:00:04]} Qe4+ {[%emt 0:00:08]} 48. Qf3 {[%emt 0:01:29]} Qxf3+ {[%emt 0:00:43]} 49. Kxf3 {[%emt 0:00:17]} Rxh4 {[%emt 0:00:06]} 50. Kg2 {[%emt 0:00:16]} Kg6 {[%emt 0:00:59]} 51. Rg3+ {[%emt 0:00:15]} Kf5 {[%emt 0:00:11]} 52. Rg7 {[%emt 0:01:16]} Rg4+ {[%emt 0:00:12]} 53. Rxg4 {[%emt 0:00:05]} Kxg4 {[%emt 0:00:02]} 54. Kf2 {[%emt 0:00:27]} Bf5 1/2-1/2

[Event "55th Rubinstein Memorial-C 2019"]
[Site "Polanica-Zdroj"]
[Date "2019.08.19"]
[Round "3.21"]
[White "Janzer, Hubert"]
[Black "Wojtowicz, Stanislaw"]
[Result "1-0"]
[ECO "D00"]
[WhiteElo "1803"]
[BlackElo "2050"]
[Annotator "NA RC"]
[PlyCount "65"]
[EventDate "2019.08.17"]
[EventType "swiss"]
[EventCountry "POL"]
[SourceTitle "playchess.com"]
[Source "ChessBase"]
[SourceQuality "1"]
[TimeControl "40/5400+30:1800+30"]

{[%evp 8,65,42,30,32767,32767,32767,32767,32767,32767,32767,-4,25,32767,37,36,32767,32767,32767,32767,32767,32767,32767,32767,32767,80,32767,32767,32767,32767,32767,32767,32767,32767,32767,32767,32767,110,218,198,215,226,146,264,238,32767,383,422,393,534,559,695,604,1596,4710,5804,32767,32767,5819,4726]} 1. d4 {[%emt 0:00:00]} d5 {[%emt 0:00:00]} 2. Bf4 {[%emt 0:00:00]} e6 {[%emt 0:00:00]} 3. e3 {[%emt 0:00:06]} Bd6 {[%emt 0:00:08]} 4. Bg3 {[%emt 0:00:37]} Bxg3 {[%emt 0:00:14]} 5. hxg3 {[%emt 0:00:08]} Nf6 {[%emt 0:00:35]} 6. Nf3 {[%emt 0:00:37]} h6 {[%emt 0:00:21] D02: 1 d4 d5 2 Nf3 sidelines, including 2...Nf6 3 g3 and 2...Nf6 3 Bf4} (6... Nbd7 7. c4 dxc4 8. Bxc4 c5 9. Nc3 a6 10. a4 cxd4 11. Qxd4 Qa5 12. g4 e5 13. Qd6 Qb6 14. Qa3 e4 15. Nd2 Qa5 16. g5 Qxg5 17. Ndxe4 Nxe4 18. Nxe4 Qa5+ 19. Kf1 {1-0 (19) Georgiev,K (2627)-Lazic,M (2466) Padova 2015}) 7. Nbd2 {[%emt 0:01:29]} Nbd7 {[%emt 0:00:44]} 8. Bd3 {[%emt 0:00:50]} c5 {[%emt 0:00:14]} 9. c3 {[%emt 0:00:24]} Qe7 {[%emt 0:04:03]} 10. Ne5 {[%emt 0:01:37]} Nxe5 {[%emt 0:08:11]} 11. dxe5 {[%emt 0:00:07]} Nd7 {[%emt 0:00:22]} 12. f4 {[%emt 0:00:17]} c4 {[%emt 0:02:21]} 13. Bc2 {[%emt 0:00:20]} Nc5 $146 {[%emt 0:01:31]} ({Predecessor:} 13... b5 14. Nf3 {1-0 (28) Scotti,U (2182)-Salati,P (1954) Arco 2005}) 14. Nf3 {[%emt 0:01:08]} Bd7 {[%emt 0:00:55]} 15. Nd4 {[%emt 0:00:32]} b6 {[%emt 0:11:29]} 16. Qe2 {[%emt 0:01:43]} a6 {[%emt 0:03:58]} 17. e4 {[%emt 0:00:36]} Nxe4 {[%emt 0:01:45]} 18. Bxe4 {[%emt 0:00:07]} dxe4 {[%emt 0:00:11]} 19. Qxe4 {[%emt 0:03:27]} O-O {[%emt 0:00:38]} 20. g4 {[%emt 0:00:52]} f5 {[%emt 0:01:27]} 21. gxf5 {[%emt 0:01:42]} exf5 {[%emt 0:00:13]} 22. Qd5+ {[%emt 0:01:07]} Kh8 {[%emt 0:00:26]} (22... Qf7 $16 {might work better.} 23. Qf3 Rab8) 23. O-O-O {[%emt 0:01:06]} Rfe8 {[%emt 0:05:31]} 24. Rh5 {[%emt 0:06:34]} Rad8 {[%emt 0:02:17] [#]} 25. Rdh1 $1 {[%emt 0:06:14]} ({Much less strong is} 25. Qxc4 $6 Bb5 $18) 25... Be6 {[%emt 0:03:41]} 26. Qc6 {[%emt 0:05:59]} Rxd4 $2 {[%emt 0:03:44]} (26... Kg8 27. Qxb6 Qf7) 27. cxd4 {[%emt 0:00:16]} c3 {[%emt 0:00:13]} 28. d5 {[%emt 0:04:00]} cxb2+ {[%emt 0:00:23]} 29. Kb1 {[%emt 0:00:10]} Qd7 {[%emt 0:04:07] [#]} 30. Rxh6+ $1 {[%emt 0:00:40]} gxh6 {[%emt 0:01:41]} 31. Rxh6+ {[%emt 0:00:07] Double Attack} Kg7 {[%emt 0:00:06]} 32. Rxe6 {[%emt 0:00:05]} Qxc6 $18 {[%emt 0:00:39]} 33. Rxc6 {[%emt 0:00:09]} 1-0

[Event "55th Rubinstein Memorial-C 2019"]
[Site "Polanica-Zdroj"]
[Date "2019.08.19"]
[Round "3.22"]
[White "Kroliczek, Gabriela"]
[Black "Babczynski, Zbigniew"]
[Result "1-0"]
[ECO "B23"]
[WhiteElo "1787"]
[BlackElo "1551"]
[Annotator "NA RC"]
[PlyCount "65"]
[EventDate "2019.08.17"]
[EventType "swiss"]
[EventCountry "POL"]
[SourceTitle "playchess.com"]
[Source "ChessBase"]
[SourceQuality "1"]
[TimeControl "40/5400+30:1800+30"]

1. e4 {[%emt 0:00:00]} c5 {[%emt 0:00:00]} 2. Nc3 {[%emt 0:00:00]} g6 {[%emt 0:00:07]} 3. d4 {[%emt 0:01:34]} cxd4 {[%emt 0:00:52]} 4. Qxd4 {[%emt 0:00:10]} Nf6 {[%emt 0:00:07]} 5. b3 {[%emt 0:02:49]} Bg7 {[%emt 0:02:09]} 6. Bb2 {[%emt 0:00:06]} Nc6 {[%emt 0:01:06]} 7. Qd2 {[%emt 0:00:05]} Nxe4 {[%emt 0:03:14]} 8. Nxe4 {[%emt 0:01:30]} Bxb2 {[%emt 0:00:26]} 9. Rd1 {[%emt 0:00:36]} Bg7 {[%emt 0:02:14]} 10. Bc4 {[%emt 0:03:53]} O-O {[%emt 0:02:12]} 11. Nf3 {[%emt 0:01:14]} d6 {[%emt 0:04:59]} 12. O-O {[%emt 0:00:44]} Bg4 {[%emt 0:01:28]} 13. Qf4 {[%emt 0:03:15]} Bf5 {[%emt 0:08:27]} 14. Rfe1 {[%emt 0:12:42]} Ne5 {[%emt 0:07:11]} 15. Nxe5 {[%emt 0:04:22]} Bxe5 {[%emt 0:00:58]} 16. Qh6 {[%emt 0:00:57]} Bg7 {[%emt 0:13:11]} 17. Qf4 {[%emt 0:01:55]} h6 {[%emt 0:09:41]} 18. Ng3 {[%emt 0:05:30]} Bxc2 {[%emt 0:05:40]} 19. Rd2 {[%emt 0:00:14]} g5 {[%emt 0:02:09]} 20. Qe3 {[%emt 0:01:15]} Bg6 {[%emt 0:02:29]} 21. Qxe7 {[%emt 0:00:46]} Bc3 {[%emt 0:01:18]} 22. Rxd6 {[%emt 0:00:30]} Qxe7 {[%emt 0:00:09]} 23. Rxe7 {[%emt 0:00:09]} Kg7 {[%emt 0:05:34]} 24. Rxb7 {[%emt 0:00:54]} a5 {[%emt 0:00:16]} 25. Nf1 {[%emt 0:08:22]} Bb4 {[%emt 0:02:04]} 26. Rdd7 {[%emt 0:07:43]} Rae8 {[%emt 0:04:27]} 27. h3 {[%emt 0:05:17]} Re1 {[%emt 0:00:35]} 28. Rb5 {[%emt 0:01:01]} Ra1 {[%emt 0:04:56]} 29. a4 {[%emt 0:00:53]} Rc1 {[%emt 0:01:48]} 30. Kh2 {[%emt 0:01:02]} Rc8 {[%emt 0:00:59]} 31. Ne3 {[%emt 0:01:33]} Be1 {[%emt 0:03:36]} 32. Nf5+ {[%emt 0:03:12]} Kf6 {[%emt 0:03:11]} 33. Rd6# {[%emt 0:00:15]} 1-0

[Event "55th Rubinstein Memorial-C 2019"]
[Site "Polanica-Zdroj"]
[Date "2019.08.19"]
[Round "3.23"]
[White "Gajzner, Ryszard"]
[Black "Hasterok, Lukasz"]
[Result "1-0"]
[ECO "A46"]
[WhiteElo "1740"]
[BlackElo "1531"]
[Annotator "NA RC"]
[PlyCount "111"]
[EventDate "2019.08.17"]
[EventType "swiss"]
[EventCountry "POL"]
[SourceTitle "playchess.com"]
[Source "ChessBase"]
[SourceQuality "1"]
[TimeControl "40/5400+30:1800+30"]

1. d4 Nf6 2. Nf3 e6 3. g3 b6 4. Bg2 Bb7 5. O-O d6 6. c4 Nbd7 7. Nc3 Be7 8. Qc2 O-O 9. Rd1 c5 10. d5 exd5 11. cxd5 a6 12. e4 Qc7 13. Bf4 Nh5 14. Be3 g6 15. Rac1 b5 16. e5 dxe5 17. d6 Bxd6 18. Qd2 e4 19. Qxd6 Qxd6 20. Rxd6 exf3 21. Rxd7 Bc8 22. Bxf3 Bxd7 23. Bxc5 Rfc8 24. Bxa8 Rxc5 25. Rd1 Bc6 26. Rd8+ Kg7 27. Rc8 b4 28. Rxc6 Rxc6 29. Bxc6 bxc3 30. bxc3 Kf6 31. Bd5 Ng7 32. f4 Ne8 33. Kf2 Nc7 34. Bc4 Ke7 35. Ke3 f6 36. Kd4 Kd6 37. Bg8 h6 38. c4 a5 39. c5+ Kd7 40. a4 Kc6 41. Kc4 g5 42. fxg5 fxg5 43. Bf7 Kd7 44. Bd5 Ke7 45. Bc6 Ke6 46. Kd4 h5 47. Bf3 h4 48. Bg4+ Kf6 49. c6 Na6 50. Bc8 Nb4 51. Kc5 Ke7 52. Kb5 Kd6 53. gxh4 gxh4 54. Bd7 Kc7 55. h3 Kd6 56. Kb6 1-0

[Event "55th Rubinstein Memorial-C 2019"]
[Site "Polanica-Zdroj"]
[Date "2019.08.19"]
[Round "3.24"]
[White "Burdzicki, Jan"]
[Black "Bialik, Nikodem"]
[Result "1/2-1/2"]
[ECO "C02"]
[WhiteElo "1716"]
[BlackElo "1472"]
[Annotator "NA RC"]
[PlyCount "61"]
[EventDate "2019.08.17"]
[EventType "swiss"]
[EventCountry "POL"]
[SourceTitle "playchess.com"]
[Source "ChessBase"]
[SourceQuality "1"]
[TimeControl "40/5400+30:1800+30"]

1. e4 {[%emt 0:00:00]} e6 {[%emt 0:00:12]} 2. d4 {[%emt 0:00:00]} d5 {[%emt 0:00:20]} 3. e5 {[%emt 0:00:00]} c5 {[%emt 0:00:33]} 4. c3 {[%emt 0:00:00]} Qb6 {[%emt 0:00:35]} 5. Nf3 {[%emt 0:00:07]} Nc6 {[%emt 0:00:33]} 6. Bd3 {[%emt 0:00:11]} cxd4 {[%emt 0:00:09]} 7. cxd4 {[%emt 0:00:01]} Bd7 {[%emt 0:00:34]} 8. O-O {[%emt 0:00:02]} Nxd4 {[%emt 0:00:39]} 9. Nxd4 {[%emt 0:00:09]} Qxd4 {[%emt 0:00:05]} 10. Nc3 {[%emt 0:00:08]} a6 {[%emt 0:01:26]} 11. Qe2 {[%emt 0:01:35]} Ne7 {[%emt 0:01:34]} 12. Kh1 {[%emt 0:00:15]} Nc6 {[%emt 0:00:16]} 13. f4 {[%emt 0:00:01]} Nb4 {[%emt 0:00:18]} 14. Rd1 {[%emt 0:00:11]} Nxd3 {[%emt 0:01:30]} 15. Rxd3 {[%emt 0:00:01]} Qc4 {[%emt 0:00:48]} 16. b3 {[%emt 0:00:12]} Qc7 {[%emt 0:03:36]} 17. Bb2 {[%emt 0:00:27]} Bb4 {[%emt 0:02:29]} 18. Qf2 {[%emt 0:12:12]} Qc5 {[%emt 0:06:01]} 19. Qh4 {[%emt 0:09:46]} Bxc3 {[%emt 0:02:07]} 20. Rxc3 {[%emt 0:01:51]} Qe7 {[%emt 0:06:09]} 21. Qg4 {[%emt 0:02:44]} g6 {[%emt 0:01:45]} 22. a4 {[%emt 0:08:41]} h5 {[%emt 0:02:54]} 23. Qe2 {[%emt 0:13:39]} Bc6 {[%emt 0:00:29]} 24. Ba3 {[%emt 0:03:05]} Qd7 {[%emt 0:00:40]} 25. Bd6 {[%emt 0:01:22]} f5 {[%emt 0:04:01]} 26. b4 {[%emt 0:03:12]} Kf7 {[%emt 0:05:57]} 27. Rac1 {[%emt 0:01:15]} Rhc8 {[%emt 0:01:44]} 28. Qf2 {[%emt 0:09:47]} Qd8 {[%emt 0:02:54]} 29. a5 {[%emt 0:06:54]} Qd7 {[%emt 0:01:34]} 30. Qh4 {[%emt 0:01:33]} Qd8 {[%emt 0:00:13]} 31. Qf2 {[%emt 0:00:22]} 1/2-1/2

[Event "55th Rubinstein Memorial-C 2019"]
[Site "Polanica-Zdroj"]
[Date "2019.08.19"]
[Round "3.25"]
[White "Kurcaba, Lukasz"]
[Black "Kolodziejski, Piotr"]
[Result "0-1"]
[ECO "E14"]
[WhiteElo "1529"]
[BlackElo "1701"]
[Annotator "NA RC"]
[PlyCount "64"]
[EventDate "2019.08.17"]
[EventType "swiss"]
[EventCountry "POL"]
[SourceTitle "playchess.com"]
[Source "ChessBase"]
[SourceQuality "1"]
[TimeControl "40/5400+30:1800+30"]

1. d4 {[%emt 0:00:00]} Nf6 {[%emt 0:00:00]} 2. Nf3 {[%emt 0:00:00]} e6 {[%emt 0:00:00]} 3. c4 {[%emt 0:00:03]} b6 {[%emt 0:00:00]} 4. e3 {[%emt 0:05:15]} Bb7 {[%emt 0:00:30]} 5. a3 {[%emt 0:03:35]} Be7 {[%emt 0:03:23]} 6. Bd3 {[%emt 0:02:27]} d5 {[%emt 0:01:33]} 7. Nc3 {[%emt 0:02:30]} dxc4 {[%emt 0:02:40]} 8. Bxc4 {[%emt 0:00:24]} O-O {[%emt 0:01:37]} 9. O-O {[%emt 0:01:49]} Nbd7 {[%emt 0:02:25]} 10. Bd3 {[%emt 0:04:38]} c5 {[%emt 0:03:04]} 11. Ng5 {[%emt 0:17:51]} h6 {[%emt 0:04:37]} 12. Nge4 {[%emt 0:00:44]} cxd4 {[%emt 0:02:45]} 13. exd4 {[%emt 0:03:20]} Nxe4 {[%emt 0:03:46]} 14. Nxe4 {[%emt 0:02:29]} Nf6 {[%emt 0:01:49]} 15. Nxf6+ {[%emt 0:04:20]} Bxf6 {[%emt 0:00:12]} 16. Be3 {[%emt 0:05:27]} Qd5 {[%emt 0:03:47]} 17. f3 {[%emt 0:02:40]} Rfd8 {[%emt 0:03:19]} 18. Be4 {[%emt 0:00:59]} Qd7 {[%emt 0:00:06]} 19. Bxb7 {[%emt 0:01:09]} Qxb7 {[%emt 0:00:10]} 20. Rf2 {[%emt 0:10:29]} Rd5 {[%emt 0:02:42]} 21. Qa4 {[%emt 0:01:16]} Rc8 {[%emt 0:08:18]} 22. Rd2 {[%emt 0:03:14]} Rc6 {[%emt 0:07:22]} 23. Rad1 {[%emt 0:02:44]} b5 {[%emt 0:01:51]} 24. Qb3 {[%emt 0:01:41]} a6 {[%emt 0:04:31]} 25. Rc2 {[%emt 0:00:10]} Rcd6 {[%emt 0:01:18]} 26. Rcd2 {[%emt 0:05:13]} Qd7 {[%emt 0:02:04]} 27. Qb4 {[%emt 0:01:32]} Rc6 {[%emt 0:01:24]} 28. b3 {[%emt 0:04:33]} Be7 {[%emt 0:00:28]} 29. Qa5 {[%emt 0:00:56]} Bd8 {[%emt 0:00:11]} 30. Qb4 {[%emt 0:02:36]} a5 {[%emt 0:00:12]} 31. Qc5 {[%emt 0:01:05]} Rcxc5 {[%emt 0:01:16]} 32. dxc5 {[%emt 0:00:08]} Bf6 {[%emt 0:02:27]} 0-1

[Event "55th Rubinstein Memorial-C 2019"]
[Site "Polanica-Zdroj"]
[Date "2019.08.19"]
[Round "3.26"]
[White "Milczarek, Robert"]
[Black "Kubik, Rafal"]
[Result "1/2-1/2"]
[ECO "D85"]
[WhiteElo "1698"]
[BlackElo "1464"]
[Annotator "NA RC"]
[PlyCount "32"]
[EventDate "2019.08.17"]
[EventType "swiss"]
[EventCountry "POL"]
[SourceTitle "playchess.com"]
[Source "ChessBase"]
[SourceQuality "1"]
[TimeControl "40/5400+30:1800+30"]

1. d4 {[%emt 0:00:00]} Nf6 {[%emt 0:00:00]} 2. c4 {[%emt 0:00:00]} g6 {[%emt 0:00:00]} 3. Nc3 {[%emt 0:00:00]} d5 {[%emt 0:00:00]} 4. cxd5 {[%emt 0:00:12]} Nxd5 {[%emt 0:00:05]} 5. e4 {[%emt 0:00:07]} Nxc3 {[%emt 0:00:03]} 6. bxc3 {[%emt 0:00:07]} Bg7 {[%emt 0:00:07]} 7. Nf3 {[%emt 0:00:16]} c5 {[%emt 0:00:13]} 8. Rb1 {[%emt 0:01:00]} O-O {[%emt 0:00:29]} 9. Be2 {[%emt 0:00:22]} cxd4 {[%emt 0:00:44]} 10. cxd4 {[%emt 0:00:07]} Nc6 {[%emt 0:02:36]} 11. Be3 {[%emt 0:08:48]} Qa5+ {[%emt 0:16:50]} 12. Bd2 {[%emt 0:03:13]} Qxa2 {[%emt 0:06:31]} 13. Ra1 {[%emt 0:06:49]} Qb2 {[%emt 0:04:26]} 14. Rb1 {[%emt 0:00:14]} Qa2 {[%emt 0:00:05]} 15. Ra1 {[%emt 0:00:13]} Qb2 {[%emt 0:00:08]} 16. Rb1 {[%emt 0:00:07]} Qa2 1/2-1/2

[Event "55th Rubinstein Memorial-C 2019"]
[Site "Polanica-Zdroj"]
[Date "2019.08.19"]
[Round "3.27"]
[White "Bartlomowicz, Jakub"]
[Black "Karpinski, Andrzej"]
[Result "1-0"]
[ECO "B07"]
[WhiteElo "1497"]
[BlackElo "1673"]
[Annotator "NA RC"]
[PlyCount "79"]
[EventDate "2019.08.17"]
[EventType "swiss"]
[EventCountry "POL"]
[SourceTitle "playchess.com"]
[Source "ChessBase"]
[SourceQuality "1"]
[TimeControl "40/5400+30:1800+30"]

1. e4 {[%emt 0:00:00]} d6 {[%emt 0:01:53]} 2. d4 {[%emt 0:00:03]} Nf6 {[%emt 0:00:18]} 3. Nc3 {[%emt 0:00:50]} g6 {[%emt 0:00:29]} 4. f3 {[%emt 0:02:53]} Bg7 {[%emt 0:00:54]} 5. Be3 {[%emt 0:00:47]} c6 {[%emt 0:00:28]} 6. Qd2 {[%emt 0:00:55]} b5 {[%emt 0:01:41]} 7. O-O-O {[%emt 0:01:10]} a6 {[%emt 0:05:45]} 8. Bh6 {[%emt 0:06:19]} Bxh6 {[%emt 0:05:26]} 9. Qxh6 {[%emt 0:00:10]} Qc7 {[%emt 0:04:21]} 10. h4 {[%emt 0:12:42]} Nbd7 {[%emt 0:04:30]} 11. g4 {[%emt 0:08:30]} Bb7 {[%emt 0:05:23]} 12. h5 {[%emt 0:10:25]} O-O-O {[%emt 0:04:41]} 13. hxg6 {[%emt 0:00:25]} fxg6 {[%emt 0:00:14]} 14. Nh3 {[%emt 0:01:01]} b4 {[%emt 0:06:11]} 15. Ne2 {[%emt 0:01:08]} Qa5 {[%emt 0:01:02]} 16. Kb1 {[%emt 0:00:28]} e5 {[%emt 0:05:43]} 17. Ng5 {[%emt 0:02:12]} Rdf8 {[%emt 0:03:39]} 18. Bh3 {[%emt 0:06:05]} Kb8 {[%emt 0:05:13]} 19. Ne6 {[%emt 0:01:48]} Rf7 {[%emt 0:01:46]} 20. Qe3 {[%emt 0:08:11]} Nf8 {[%emt 0:12:42]} 21. dxe5 {[%emt 0:06:34]} Qxe5 {[%emt 0:04:56]} 22. Nd8 {[%emt 0:01:44]} Rc7 {[%emt 0:05:51]} 23. Nxb7 {[%emt 0:01:37]} Rxb7 {[%emt 0:03:52]} 24. Qd3 {[%emt 0:00:19]} d5 {[%emt 0:02:29]} 25. Qxa6 {[%emt 0:02:30]} Qc7 {[%emt 0:02:05]} 26. g5 {[%emt 0:00:33]} Ra7 {[%emt 0:01:29]} 27. Qd3 {[%emt 0:00:56]} N6d7 {[%emt 0:03:10]} 28. exd5 {[%emt 0:00:24]} c5 {[%emt 0:01:26]} 29. Qb5+ {[%emt 0:01:22]} Rb7 {[%emt 0:01:31]} 30. Qc6 {[%emt 0:00:12]} Qa5 {[%emt 0:00:32]} 31. Qd6+ {[%emt 0:01:53]} Ka8 {[%emt 0:00:37]} 32. Rd3 {[%emt 0:01:52]} Nb6 {[%emt 0:03:39]} 33. Qd8+ {[%emt 0:03:28]} Rb8 {[%emt 0:00:41]} 34. Qf6 {[%emt 0:00:58]} Nfd7 {[%emt 0:00:44]} 35. Qc6+ {[%emt 0:01:14]} Rb7 {[%emt 0:00:29]} 36. Bxd7 {[%emt 0:00:13]} Nxd7 37. Re3 {[%emt 0:00:23]} Nb6 {[%emt 0:01:49]} 38. Re7 {[%emt 0:00:12]} Rhb8 {[%emt 0:00:06]} 39. Rxb7 {[%emt 0:00:24]} Rxb7 {[%emt 0:00:01]} 40. Rxh7 1-0